[Event "*** Titled Tuesday Blitz"]
[Site "Chess.com"]
[Date "2018.06.05"]
[Round "4"]
[White "Colombiano07"]
[Black "MishkaFighter"]
[Result "1-0"]
[WhiteElo "2231"]
[BlackElo "2029"]
[TimeControl "180+2"]
[EndTime "13:58:37 PDT"]
[Termination "Colombiano07 won on time"]

1. e4 {[%clk 0:03:01.9]} 1... c6 {[%clk 0:02:59.2]} 2. d4 {[%clk 0:03:02.4]}
2... d5 {[%clk 0:03:00.1]} 3. Nc3 {[%clk 0:03:03.3]} 3... dxe4 {[%clk
0:03:00.4]} 4. Nxe4 {[%clk 0:03:05.2]} 4... Bf5 {[%clk 0:03:01.5]} 5. Ng3 {[%clk
0:03:06.2]} 5... Bg6 {[%clk 0:03:02.7]} 6. h4 {[%clk 0:03:08.1]} 6... h6 {[%clk
0:03:02.4]} 7. Nf3 {[%clk 0:03:10]} 7... Nd7 {[%clk 0:03:03]} 8. h5 {[%clk
0:03:11.3]} 8... Bh7 {[%clk 0:03:04.4]} 9. Bd3 {[%clk 0:03:12.9]} 9... Bxd3
{[%clk 0:03:05.5]} 10. Qxd3 {[%clk 0:03:14.8]} 10... e6 {[%clk 0:03:07.1]} 11.
Bf4 {[%clk 0:03:15.8]} 11... Ngf6 {[%clk 0:03:05.8]} 12. O-O-O {[%clk
0:03:15.7]} 12... Be7 {[%clk 0:03:03.1]} 13. Ne4 {[%clk 0:03:15.7]} 13... Nxe4
{[%clk 0:03:04.4]} 14. Qxe4 {[%clk 0:03:17.6]} 14... Nf6 {[%clk 0:03:06]} 15.
Qd3 {[%clk 0:03:18.2]} 15... Qd5 {[%clk 0:03:05.8]} 16. Kb1 {[%clk 0:03:18.7]}
16... Qe4 {[%clk 0:03:04.2]} 17. Qxe4 {[%clk 0:03:16.7]} 17... Nxe4 {[%clk
0:03:06.1]} 18. Be3 {[%clk 0:03:18.4]} 18... f5 {[%clk 0:03:05.4]} 19. Rhe1
{[%clk 0:03:15.1]} 19... Bf6 {[%clk 0:03:05.5]} 20. Ne5 {[%clk 0:03:02.8]} 20...
Rd8 {[%clk 0:02:44.2]} 21. f3 {[%clk 0:03:01.5]} 21... Ng3 {[%clk 0:02:28.4]}
22. Ng6 {[%clk 0:02:41.6]} 22... Rg8 {[%clk 0:02:24.5]} 23. Nf4 {[%clk
0:02:29.4]} 23... e5 {[%clk 0:02:08.6]} 24. Bf2 {[%clk 0:02:25]} 24... Ne4
{[%clk 0:01:44.3]} 25. fxe4 {[%clk 0:02:13]} 25... exf4 {[%clk 0:01:43.8]} 26.
e5 {[%clk 0:01:58.8]} 26... Bg5 {[%clk 0:01:43.9]} 27. c4 {[%clk 0:01:59.4]}
27... b5 {[%clk 0:01:34.9]} 28. b3 {[%clk 0:01:56.7]} 28... bxc4 {[%clk
0:01:33.2]} 29. bxc4 {[%clk 0:01:54.5]} 29... Ke7 {[%clk 0:01:33.9]} 30. d5
{[%clk 0:01:52.1]} 30... cxd5 {[%clk 0:01:33]} 31. cxd5 {[%clk 0:01:54]} 31...
Rb8+ {[%clk 0:01:30.3]} 32. Ka1 {[%clk 0:01:47.1]} 32... Rgc8 {[%clk 0:01:29.6]}
33. Bd4 {[%clk 0:01:43.1]} 33... Rb5 {[%clk 0:01:17.8]} 34. Bb2 {[%clk
0:01:35.6]} 34... Rc2 {[%clk 0:01:15.1]} 35. Ba3+ {[%clk 0:01:32.2]} 35... Ke8
{[%clk 0:01:02.9]} 36. d6 {[%clk 0:01:25.1]} 36... Ra5 {[%clk 0:00:58.3]} 37.
Rd3 {[%clk 0:01:25.6]} 37... f3 {[%clk 0:00:50.1]} 38. gxf3 {[%clk 0:01:22.3]}
38... Rb5 {[%clk 0:00:38.1]} 39. Rb3 {[%clk 0:00:55.8]} 39... Rxb3 {[%clk
0:00:16.2]} 40. axb3 {[%clk 0:00:57.7]} 40... Bd2 {[%clk 0:00:08.6]} 41. Kb1
{[%clk 0:00:25.7]} 41... Rc6 {[%clk 0:00:04.2]} 42. Rd1 {[%clk 0:00:20.9]} 42...
Bf4 {[%clk 0:00:03.3]} 43. d7+ {[%clk 0:00:21.8]} 43... Kd8 {[%clk 0:00:04.2]}
44. Be7+ {[%clk 0:00:23.1]} 44... Kxe7 {[%clk 0:00:03.3]} 45. d8=Q+ {[%clk
0:00:25]} 45... Ke6 {[%clk 0:00:04.4]} 46. Rd6+ {[%clk 0:00:25.5]} 46... Kxe5
{[%clk 0:00:04.7]} 47. Rxc6 {[%clk 0:00:26.1]} 1-0

[Event "*** Titled Tuesday Blitz"]
[Site "Chess.com"]
[Date "2018.06.05"]
[Round "4"]
[White "krzysztofszczurek"]
[Black "talento10"]
[Result "0-1"]
[WhiteElo "2127"]
[BlackElo "2166"]
[TimeControl "180+2"]
[EndTime "13:58:37 PDT"]
[Termination "talento10 won by resignation"]

1. e4 {[%clk 0:03:01.9]} 1... c5 {[%clk 0:03:00.3]} 2. c3 {[%clk 0:03:02.1]}
2... Nf6 {[%clk 0:03:00.6]} 3. e5 {[%clk 0:03:02.3]} 3... Nd5 {[%clk 0:03:01.8]}
4. d4 {[%clk 0:03:03.9]} 4... cxd4 {[%clk 0:03:03.1]} 5. Qxd4 {[%clk 0:03:04.8]}
5... e6 {[%clk 0:03:03.9]} 6. Nf3 {[%clk 0:03:05.8]} 6... Nc6 {[%clk 0:03:05.1]}
7. Qe4 {[%clk 0:03:06.4]} 7... Be7 {[%clk 0:02:34.9]} 8. Bd3 {[%clk 0:03:00.2]}
8... d6 {[%clk 0:02:33.8]} 9. O-O {[%clk 0:02:53]} 9... dxe5 {[%clk 0:02:24.4]}
10. Nxe5 {[%clk 0:02:46.8]} 10... f5 {[%clk 0:02:25.5]} 11. Qe2 {[%clk
0:02:44.2]} 11... Nxe5 {[%clk 0:02:24.3]} 12. Qxe5 {[%clk 0:02:44.4]} 12... O-O
{[%clk 0:02:25.1]} 13. Nd2 {[%clk 0:02:33.9]} 13... Bf6 {[%clk 0:02:13.4]} 14.
Qg3 {[%clk 0:02:29.9]} 14... e5 {[%clk 0:02:12.8]} 15. Rd1 {[%clk 0:02:00.4]}
15... Be6 {[%clk 0:02:09.5]} 16. Nb3 {[%clk 0:01:54.9]} 16... Qe7 {[%clk
0:01:57.5]} 17. Bc4 {[%clk 0:01:45.8]} 17... Rfd8 {[%clk 0:01:53.5]} 18. Bxd5
{[%clk 0:01:31.9]} 18... Bxd5 {[%clk 0:01:46.2]} 19. Bd2 {[%clk 0:01:11.9]}
19... Bc6 {[%clk 0:01:39.3]} 20. Qh3 {[%clk 0:01:04.5]} 20... g6 {[%clk
0:01:37.8]} 21. Be3 {[%clk 0:01:02.4]} 21... b6 {[%clk 0:01:38]} 22. Re1 {[%clk
0:00:56]} 22... Qb7 {[%clk 0:01:28.5]} 23. Rad1 {[%clk 0:00:36.2]} 23... a5
{[%clk 0:01:28.1]} 24. f4 {[%clk 0:00:29.6]} 24... Rxd1 {[%clk 0:01:23.2]} 25.
Rxd1 {[%clk 0:00:29.4]} 25... a4 {[%clk 0:01:25.1]} 26. Nd2 {[%clk 0:00:28.3]}
26... exf4 {[%clk 0:01:25.7]} 27. Bxf4 {[%clk 0:00:27.7]} 27... a3 {[%clk
0:01:25.3]} 28. b3 {[%clk 0:00:21.5]} 28... Re8 {[%clk 0:01:23.7]} 29. Nc4
{[%clk 0:00:21.4]} 29... Re2 {[%clk 0:01:20.8]} 30. Ne3 {[%clk 0:00:22.1]} 30...
Rxa2 {[%clk 0:01:19.2]} 31. Rd6 {[%clk 0:00:20.1]} 31... Be7 {[%clk 0:01:02.3]}
32. Rd1 {[%clk 0:00:20]} 32... Rb2 {[%clk 0:00:58.8]} 33. Be5 {[%clk 0:00:17.7]}
33... a2 {[%clk 0:00:55.7]} 34. c4 {[%clk 0:00:18.1]} 34... Rb1 {[%clk
0:00:53.6]} 35. Qh6 {[%clk 0:00:18.7]} 35... Bf8 {[%clk 0:00:54.5]} 36. Qg5
{[%clk 0:00:18.9]} 36... Qd7 {[%clk 0:00:37.7]} 37. Rf1 {[%clk 0:00:14.5]} 37...
Rxf1+ {[%clk 0:00:30.9]} 38. Kxf1 {[%clk 0:00:15.2]} 38... Qd3+ {[%clk
0:00:32.8]} 39. Kf2 {[%clk 0:00:16.3]} 39... Bc5 {[%clk 0:00:31.7]} 40. Qf4
{[%clk 0:00:13.6]} 40... Qxb3 {[%clk 0:00:24.8]} 41. Ba1 {[%clk 0:00:12]} 41...
Qxe3+ {[%clk 0:00:23.3]} 42. Qxe3 {[%clk 0:00:12.5]} 42... Bxe3+ {[%clk
0:00:24.7]} 43. Kxe3 {[%clk 0:00:14]} 43... Bxg2 {[%clk 0:00:25.3]} 44. Kd3
{[%clk 0:00:14.7]} 44... f4 {[%clk 0:00:24.2]} 45. Ke2 {[%clk 0:00:12.3]} 45...
Bc6 {[%clk 0:00:24.1]} 46. Kf2 {[%clk 0:00:10]} 46... Kf7 {[%clk 0:00:25.3]} 47.
Be5 {[%clk 0:00:10.1]} 47... Ke6 {[%clk 0:00:25.5]} 48. Bd4 {[%clk 0:00:11.5]}
48... Kf5 {[%clk 0:00:25.9]} 0-1

[Event "*** Titled Tuesday Blitz"]
[Site "Chess.com"]
[Date "2018.06.05"]
[Round "4"]
[White "ChrisTool2"]
[Black "AsaHoffmann"]
[Result "1-0"]
[WhiteElo "2231"]
[BlackElo "2079"]
[TimeControl "180+2"]
[EndTime "13:58:40 PDT"]
[Termination "ChrisTool2 won by resignation"]

1. d4 {[%clk 0:03:01.9]} 1... Nf6 {[%clk 0:02:59.3]} 2. c4 {[%clk 0:03:01.5]}
2... c5 {[%clk 0:02:59.8]} 3. e3 {[%clk 0:03:01]} 3... g6 {[%clk 0:02:58.4]} 4.
Nc3 {[%clk 0:02:59.3]} 4... Bg7 {[%clk 0:02:58.9]} 5. Nf3 {[%clk 0:03:00.7]}
5... O-O {[%clk 0:02:58.8]} 6. Be2 {[%clk 0:03:01.8]} 6... b6 {[%clk 0:02:59.5]}
7. b3 {[%clk 0:03:01.5]} 7... Bb7 {[%clk 0:02:59.9]} 8. Bb2 {[%clk 0:03:02.5]}
8... cxd4 {[%clk 0:03:00.2]} 9. exd4 {[%clk 0:03:02]} 9... d5 {[%clk 0:03:00.9]}
10. O-O {[%clk 0:02:58.8]} 10... Nbd7 {[%clk 0:03:00.5]} 11. Rc1 {[%clk
0:02:52.2]} 11... Rc8 {[%clk 0:03:00.2]} 12. Ne5 {[%clk 0:02:45.6]} 12... e6
{[%clk 0:02:54.4]} 13. Qd2 {[%clk 0:02:39.3]} 13... Nxe5 {[%clk 0:02:49.3]} 14.
dxe5 {[%clk 0:02:39.7]} 14... Nd7 {[%clk 0:02:47.8]} 15. cxd5 {[%clk 0:02:35.5]}
15... Nxe5 {[%clk 0:02:45.2]} 16. Rfd1 {[%clk 0:02:27.8]} 16... exd5 {[%clk
0:02:43.5]} 17. Nxd5 {[%clk 0:02:23.2]} 17... Rxc1 {[%clk 0:02:36]} 18. Bxc1
{[%clk 0:02:15.4]} 18... Qxd5 {[%clk 0:02:34.5]} 19. Qxd5 {[%clk 0:02:15.3]}
19... Bxd5 {[%clk 0:02:35]} 20. Rxd5 {[%clk 0:02:17.2]} 20... Rc8 {[%clk
0:02:28.8]} 21. Bf4 {[%clk 0:02:05.2]} 21... f6 {[%clk 0:02:04.2]} 22. h3 {[%clk
0:01:59.6]} 22... Rc7 {[%clk 0:02:02.4]} 23. g4 {[%clk 0:01:47.7]} 23... Kf7
{[%clk 0:02:00.6]} 24. Kg2 {[%clk 0:01:45.3]} 24... Ke6 {[%clk 0:02:00.9]} 25.
Rd8 {[%clk 0:01:46]} 25... Rc2 {[%clk 0:01:57.7]} 26. Rd2 {[%clk 0:01:42.6]}
26... Rxd2 {[%clk 0:01:55.5]} 27. Bxd2 {[%clk 0:01:43.3]} 27... Bf8 {[%clk
0:01:55.3]} 28. f4 {[%clk 0:01:42.1]} 28... Nc6 {[%clk 0:01:49.5]} 29. Bc4+
{[%clk 0:01:41]} 29... Kd7 {[%clk 0:01:48.7]} 30. Bc3 {[%clk 0:01:35.6]} 30...
Be7 {[%clk 0:01:49.1]} 31. Kf3 {[%clk 0:01:33]} 31... h6 {[%clk 0:01:49.5]} 32.
Bd3 {[%clk 0:01:09.3]} 32... g5 {[%clk 0:01:47.9]} 33. Bf5+ {[%clk 0:01:03.8]}
33... Kc7 {[%clk 0:01:44]} 34. Ke4 {[%clk 0:00:58.8]} 34... Kd6 {[%clk 0:01:38]}
35. Bb2 {[%clk 0:00:52.4]} 35... a5 {[%clk 0:01:31]} 36. Bc8 {[%clk 0:00:43.2]}
36... Kc7 {[%clk 0:01:25.8]} 37. Be6 {[%clk 0:00:41]} 37... Kd6 {[%clk
0:01:25.8]} 38. Bc4 {[%clk 0:00:36.4]} 38... Kc7 {[%clk 0:01:19.7]} 39. fxg5
{[%clk 0:00:36.1]} 39... hxg5 {[%clk 0:01:17.5]} 40. Kf5 {[%clk 0:00:37.6]}
40... Ne5 {[%clk 0:01:10.1]} 41. Bb5 {[%clk 0:00:35.1]} 41... Bd8 {[%clk
0:01:08.4]} 42. Ke6 {[%clk 0:00:30.3]} 42... Nc6 {[%clk 0:01:01.6]} 43. Bxf6
{[%clk 0:00:24.2]} 43... Bxf6 {[%clk 0:00:59]} 44. Kxf6 {[%clk 0:00:23.6]} 44...
Nd4 {[%clk 0:00:59.5]} 45. Bd3 {[%clk 0:00:20.9]} 45... Nf3 {[%clk 0:00:59]} 46.
Be4 {[%clk 0:00:18]} 46... Nd2 {[%clk 0:00:56]} 47. Bg2 {[%clk 0:00:14.3]} 47...
b5 {[%clk 0:00:52.2]} 48. Kxg5 {[%clk 0:00:15.1]} 48... b4 {[%clk 0:00:52.7]}
49. Kf5 {[%clk 0:00:13.4]} 49... Kd6 {[%clk 0:00:53.5]} 50. g5 {[%clk
0:00:14.5]} 50... a4 {[%clk 0:00:52.4]} 51. bxa4 {[%clk 0:00:14.8]} 51... Nc4
{[%clk 0:00:51.2]} 52. Ke4 {[%clk 0:00:10.5]} 52... Ne5 {[%clk 0:00:51.4]} 53.
h4 {[%clk 0:00:10.8]} 53... Ng6 {[%clk 0:00:51.2]} 54. h5 {[%clk 0:00:11.6]}
54... Nh4 {[%clk 0:00:50.3]} 55. Bf1 {[%clk 0:00:11.6]} 55... Ke6 {[%clk
0:00:50.6]} 56. a5 {[%clk 0:00:12.3]} 56... Kd6 {[%clk 0:00:50.7]} 57. g6 {[%clk
0:00:11.7]} 57... Ke7 {[%clk 0:00:49.5]} 58. a6 {[%clk 0:00:12.6]} 58... Kf6
{[%clk 0:00:50.2]} 59. a7 {[%clk 0:00:13.2]} 1-0

[Event "*** Titled Tuesday Blitz"]
[Site "Chess.com"]
[Date "2018.06.05"]
[Round "4"]
[White "PowerThinking2650"]
[Black "TomPolgar"]
[Result "1-0"]
[WhiteElo "2350"]
[BlackElo "2255"]
[TimeControl "180+2"]
[EndTime "13:58:44 PDT"]
[Termination "PowerThinking2650 won by checkmate"]

1. e4 {[%clk 0:03:01.9]} 1... c5 {[%clk 0:03:00.3]} 2. Nf3 {[%clk 0:03:02.4]}
2... Nc6 {[%clk 0:03:01.3]} 3. Nc3 {[%clk 0:03:02.7]} 3... g6 {[%clk 0:03:02.1]}
4. g3 {[%clk 0:03:02.1]} 4... Bg7 {[%clk 0:03:03.1]} 5. Bg2 {[%clk 0:03:03.1]}
5... e6 {[%clk 0:02:59]} 6. O-O {[%clk 0:03:03]} 6... Nge7 {[%clk 0:03:00.5]} 7.
d3 {[%clk 0:03:00.4]} 7... O-O {[%clk 0:03:01.7]} 8. Be3 {[%clk 0:02:52.9]} 8...
d6 {[%clk 0:03:02.4]} 9. d4 {[%clk 0:02:51.8]} 9... cxd4 {[%clk 0:02:57.7]} 10.
Nxd4 {[%clk 0:02:53.7]} 10... Nxd4 {[%clk 0:02:55.3]} 11. Bxd4 {[%clk
0:02:54.4]} 11... e5 {[%clk 0:02:44.4]} 12. Be3 {[%clk 0:02:54.7]} 12... Be6
{[%clk 0:02:45.3]} 13. Qd2 {[%clk 0:02:52.6]} 13... Qd7 {[%clk 0:02:36.5]} 14.
Rad1 {[%clk 0:02:45.9]} 14... Rfd8 {[%clk 0:02:37.2]} 15. Nd5 {[%clk 0:02:23.6]}
15... Nxd5 {[%clk 0:02:25.9]} 16. exd5 {[%clk 0:02:24.4]} 16... Bh3 {[%clk
0:02:24.9]} 17. c4 {[%clk 0:02:17.6]} 17... Bxg2 {[%clk 0:02:06.1]} 18. Kxg2
{[%clk 0:02:19.5]} 18... Rdc8 {[%clk 0:01:56.6]} 19. Rc1 {[%clk 0:02:11.9]}
19... b5 {[%clk 0:01:44.7]} 20. c5 {[%clk 0:02:11.7]} 20... dxc5 {[%clk
0:01:44.5]} 21. Rxc5 {[%clk 0:02:12.4]} 21... Rxc5 {[%clk 0:01:42.5]} 22. Bxc5
{[%clk 0:02:13.3]} 22... Rd8 {[%clk 0:01:34.1]} 23. Rd1 {[%clk 0:02:13.4]} 23...
Bf8 {[%clk 0:01:30.1]} 24. b4 {[%clk 0:02:11.9]} 24... Qc7 {[%clk 0:01:23.6]}
25. d6 {[%clk 0:01:59.5]} 25... Qc6+ {[%clk 0:01:24.4]} 26. Qd5 {[%clk
0:02:00.7]} 26... Qxd5+ {[%clk 0:01:08.8]} 27. Rxd5 {[%clk 0:02:02.6]} 27... f6
{[%clk 0:01:09.9]} 28. Bxa7 {[%clk 0:01:58.8]} 28... Rxd6 {[%clk 0:00:58.1]} 29.
Rxb5 {[%clk 0:01:52.9]} 29... Rd2 {[%clk 0:00:27.1]} 30. a4 {[%clk 0:01:52.5]}
30... Ra2 {[%clk 0:00:16.4]} 31. a5 {[%clk 0:01:49.8]} 31... e4 {[%clk
0:00:17.3]} 32. Be3 {[%clk 0:01:44.8]} 32... f5 {[%clk 0:00:16.5]} 33. h4 {[%clk
0:01:40.2]} 33... Ra4 {[%clk 0:00:12.1]} 34. Bc5 {[%clk 0:01:23.1]} 34... Bh6
{[%clk 0:00:05.7]} 35. Rb8+ {[%clk 0:01:18.9]} 35... Kf7 {[%clk 0:00:06.7]} 36.
Rb7+ {[%clk 0:01:20.2]} 36... Kg8 {[%clk 0:00:08]} 37. Rb6 {[%clk 0:01:11.2]}
37... Ra2 {[%clk 0:00:08]} 38. Kf1 {[%clk 0:00:50]} 38... Ra1+ {[%clk
0:00:05.6]} 39. Ke2 {[%clk 0:00:51.2]} 39... Ra2+ {[%clk 0:00:06.9]} 40. Kd1
{[%clk 0:00:52.5]} 40... Rd2+ {[%clk 0:00:08]} 41. Ke1 {[%clk 0:00:53.7]} 41...
Ra2 {[%clk 0:00:08.9]} 42. a6 {[%clk 0:00:54.5]} 42... e3 {[%clk 0:00:05.4]} 43.
Bxe3 {[%clk 0:00:52.7]} 43... Bg7 {[%clk 0:00:06.7]} 44. b5 {[%clk 0:00:52]}
44... Bc3+ {[%clk 0:00:06.8]} 45. Kf1 {[%clk 0:00:53]} 45... Kg7 {[%clk
0:00:03.3]} 46. Rc6 {[%clk 0:00:50.7]} 46... Be5 {[%clk 0:00:02.8]} 47. a7
{[%clk 0:00:50.3]} 47... Ra1+ {[%clk 0:00:04.3]} 48. Kg2 {[%clk 0:00:51]} 48...
g5 {[%clk 0:00:05.5]} 49. hxg5 {[%clk 0:00:51.7]} 49... Ra2 {[%clk 0:00:06.9]}
50. b6 {[%clk 0:00:51.8]} 50... f4 {[%clk 0:00:08.1]} 51. gxf4 {[%clk
0:00:52.9]} 51... Bb2 {[%clk 0:00:07.4]} 52. f5 {[%clk 0:00:52.3]} 52... h6
{[%clk 0:00:08.1]} 53. Rc7+ {[%clk 0:00:53.1]} 53... Kg8 {[%clk 0:00:08.9]} 54.
b7 {[%clk 0:00:53.2]} 54... Bg7 {[%clk 0:00:06]} 55. a8=Q+ {[%clk 0:00:52.3]}
55... Bf8 {[%clk 0:00:07.3]} 56. Qxf8+ {[%clk 0:00:51.4]} 56... Kxf8 {[%clk
0:00:08.4]} 57. b8=Q# {[%clk 0:00:52.8]} 1-0

[Event "*** Titled Tuesday Blitz"]
[Site "Chess.com"]
[Date "2018.06.05"]
[Round "4"]
[White "rubhani"]
[Black "LastHeroJr"]
[Result "1-0"]
[WhiteElo "2432"]
[BlackElo "2516"]
[TimeControl "180+2"]
[EndTime "13:58:51 PDT"]
[Termination "rubhani won by resignation"]

1. e4 {[%clk 0:03:01.9]} 1... e5 {[%clk 0:03:00.4]} 2. Nf3 {[%clk 0:03:02.6]}
2... Nc6 {[%clk 0:03:01.8]} 3. Bb5 {[%clk 0:03:03.9]} 3... a6 {[%clk 0:03:02.5]}
4. Ba4 {[%clk 0:03:04.8]} 4... Nf6 {[%clk 0:03:04.1]} 5. O-O {[%clk 0:03:05.5]}
5... Be7 {[%clk 0:03:04.8]} 6. d3 {[%clk 0:03:01.3]} 6... b5 {[%clk 0:03:03.4]}
7. Bb3 {[%clk 0:03:02]} 7... d6 {[%clk 0:03:02.2]} 8. c3 {[%clk 0:03:02.5]} 8...
O-O {[%clk 0:03:02.1]} 9. Re1 {[%clk 0:03:03.7]} 9... Na5 {[%clk 0:03:03.2]} 10.
Bc2 {[%clk 0:03:04.5]} 10... c5 {[%clk 0:03:04.8]} 11. Nbd2 {[%clk 0:03:06]}
11... Nc6 {[%clk 0:03:03.2]} 12. Nf1 {[%clk 0:03:06.7]} 12... Be6 {[%clk
0:03:04.3]} 13. h3 {[%clk 0:03:06.9]} 13... Rc8 {[%clk 0:03:03.4]} 14. Ng3
{[%clk 0:03:05]} 14... h6 {[%clk 0:02:57.4]} 15. a4 {[%clk 0:02:33.2]} 15... Re8
{[%clk 0:02:56.7]} 16. axb5 {[%clk 0:02:33.4]} 16... axb5 {[%clk 0:02:58.6]} 17.
Nh2 {[%clk 0:01:51.3]} 17... d5 {[%clk 0:02:52.1]} 18. Qf3 {[%clk 0:01:50.9]}
18... Bf8 {[%clk 0:02:41.3]} 19. Ng4 {[%clk 0:01:46.9]} 19... Nxg4 {[%clk
0:02:36.8]} 20. hxg4 {[%clk 0:01:48.8]} 20... g6 {[%clk 0:02:32]} 21. exd5
{[%clk 0:01:34.8]} 21... Bxd5 {[%clk 0:02:20.5]} 22. Ne4 {[%clk 0:01:35.8]}
22... Bg7 {[%clk 0:01:55.7]} 23. Qh3 {[%clk 0:01:36.2]} 23... Bxe4 {[%clk
0:01:07.6]} 24. Rxe4 {[%clk 0:01:14.4]} 24... g5 {[%clk 0:00:55.2]} 25. Qf3
{[%clk 0:01:06.7]} 25... Ra8 {[%clk 0:00:35.7]} 26. Rxa8 {[%clk 0:01:01.9]}
26... Qxa8 {[%clk 0:00:37.6]} 27. Re1 {[%clk 0:01:03.2]} 27... Ne7 {[%clk
0:00:32.9]} 28. Qe2 {[%clk 0:00:54.5]} 28... Nd5 {[%clk 0:00:31.3]} 29. g3
{[%clk 0:00:54.1]} 29... Qc6 {[%clk 0:00:30.2]} 30. Bb3 {[%clk 0:00:54.6]} 30...
Nb6 {[%clk 0:00:29.8]} 31. Qe4 {[%clk 0:00:22.8]} 31... Qxe4 {[%clk 0:00:30.6]}
32. Rxe4 {[%clk 0:00:23.9]} 32... Rd8 {[%clk 0:00:24.2]} 33. Be3 {[%clk
0:00:23.8]} 33... Nd7 {[%clk 0:00:21.1]} 34. Bc2 {[%clk 0:00:10.2]} 34... Nf6
{[%clk 0:00:21.2]} 35. Rxe5 {[%clk 0:00:11.5]} 35... Nxg4 {[%clk 0:00:22.4]} 36.
Rxc5 {[%clk 0:00:12.4]} 36... Nxe3 {[%clk 0:00:23.5]} 37. fxe3 {[%clk
0:00:14.3]} 37... b4 {[%clk 0:00:25.4]} 38. d4 {[%clk 0:00:15.4]} 38... bxc3
{[%clk 0:00:25.7]} 39. bxc3 {[%clk 0:00:17.3]} 39... Rb8 {[%clk 0:00:26.4]} 40.
e4 {[%clk 0:00:18.6]} 40... Rb2 {[%clk 0:00:27.3]} 41. Bd3 {[%clk 0:00:19.8]}
41... Rb3 {[%clk 0:00:27.1]} 42. e5 {[%clk 0:00:21]} 42... Bf8 {[%clk
0:00:27.1]} 43. Rc8 {[%clk 0:00:21.6]} 43... Kg7 {[%clk 0:00:27.7]} 44. d5
{[%clk 0:00:22.9]} 44... Rb2 {[%clk 0:00:25]} 45. d6 {[%clk 0:00:23.9]} 45...
Rd2 {[%clk 0:00:25.9]} 46. Bc4 {[%clk 0:00:24.9]} 46... f6 {[%clk 0:00:24.7]}
47. Rc7+ {[%clk 0:00:25.6]} 47... Kg6 {[%clk 0:00:26]} 48. Rc8 {[%clk
0:00:23.4]} 48... Kg7 {[%clk 0:00:26]} 49. exf6+ {[%clk 0:00:23.7]} 49... Kxf6
{[%clk 0:00:25.4]} 50. Rxf8+ {[%clk 0:00:24.8]} 50... Ke5 {[%clk 0:00:26.6]} 51.
Re8+ {[%clk 0:00:23.3]} 51... Kf5 {[%clk 0:00:23.2]} 52. d7 {[%clk 0:00:24.6]}
1-0

[Event "*** Titled Tuesday Blitz"]
[Site "Chess.com"]
[Date "2018.06.05"]
[Round "4"]
[White "Mr_Penings"]
[Black "alpasya2009"]
[Result "1-0"]
[WhiteElo "2433"]
[BlackElo "2400"]
[TimeControl "180+2"]
[EndTime "13:59:03 PDT"]
[Termination "Mr_Penings won by resignation"]

1. c4 {[%clk 0:03:01.2]} 1... g6 {[%clk 0:03:00.5]} 2. g3 {[%clk 0:03:02]} 2...
Bg7 {[%clk 0:03:01.5]} 3. Bg2 {[%clk 0:03:03.2]} 3... d6 {[%clk 0:03:03.1]} 4.
Nc3 {[%clk 0:03:01.4]} 4... e5 {[%clk 0:03:04.3]} 5. e4 {[%clk 0:02:57.2]} 5...
Nc6 {[%clk 0:03:01.9]} 6. Nge2 {[%clk 0:02:56.3]} 6... Nge7 {[%clk 0:02:58.1]}
7. d3 {[%clk 0:02:56.6]} 7... O-O {[%clk 0:02:59.6]} 8. O-O {[%clk 0:02:56]}
8... f5 {[%clk 0:03:01.1]} 9. f4 {[%clk 0:02:54]} 9... Kh8 {[%clk 0:02:53.9]}
10. Be3 {[%clk 0:02:54.2]} 10... Be6 {[%clk 0:02:53.6]} 11. Qd2 {[%clk
0:02:53.9]} 11... Nd4 {[%clk 0:02:53.3]} 12. Rab1 {[%clk 0:02:43.3]} 12... c5
{[%clk 0:02:48.4]} 13. b4 {[%clk 0:02:40.2]} 13... b6 {[%clk 0:02:42.6]} 14. Nd5
{[%clk 0:01:50.9]} 14... Nxd5 {[%clk 0:02:38.7]} 15. exd5 {[%clk 0:01:34.8]}
15... Bd7 {[%clk 0:02:33.9]} 16. fxe5 {[%clk 0:01:26.8]} 16... Nxe2+ {[%clk
0:02:29.8]} 17. Qxe2 {[%clk 0:01:28.7]} 17... Bxe5 {[%clk 0:02:30.9]} 18. bxc5
{[%clk 0:01:19.7]} 18... bxc5 {[%clk 0:02:31.2]} 19. Qf2 {[%clk 0:00:48.5]}
19... Rb8 {[%clk 0:02:04.3]} 20. d4 {[%clk 0:00:47.9]} 20... cxd4 {[%clk
0:02:05.7]} 21. Bxd4 {[%clk 0:00:48.9]} 21... Rxb1 {[%clk 0:01:25.1]} 22. Bxe5+
{[%clk 0:00:44.6]} 22... dxe5 {[%clk 0:01:25.5]} 23. Rxb1 {[%clk 0:00:46.1]}
23... e4 {[%clk 0:01:15.3]} 24. Qxa7 {[%clk 0:00:43.2]} 24... Qe7 {[%clk
0:00:55.7]} 25. Rb7 {[%clk 0:00:42]} 25... Rd8 {[%clk 0:00:51.5]} 26. c5 {[%clk
0:00:38.5]} 26... e3 {[%clk 0:00:50.5]} 27. Kf1 {[%clk 0:00:25.5]} 27... f4
{[%clk 0:00:19.8]} 28. c6 {[%clk 0:00:21.3]} 28... e2+ {[%clk 0:00:03.5]} 29.
Ke1 {[%clk 0:00:22.1]} 29... fxg3 {[%clk 0:00:04.7]} 30. Rxd7 {[%clk 0:00:20]}
30... Rxd7 {[%clk 0:00:04.3]} 31. Qxd7 {[%clk 0:00:20.6]} 31... Qb4+ {[%clk
0:00:05.4]} 32. Kxe2 {[%clk 0:00:21.5]} 32... Qc4+ {[%clk 0:00:06.9]} 33. Kf3
{[%clk 0:00:21.7]} 33... Qd3+ {[%clk 0:00:08]} 34. Kg4 {[%clk 0:00:20.3]} 34...
Qd4+ {[%clk 0:00:03.6]} 35. Kh3 {[%clk 0:00:19.4]} 35... gxh2 {[%clk 0:00:02.3]}
36. c7 {[%clk 0:00:16.6]} 36... Qe3+ {[%clk 0:00:03]} 37. Kxh2 {[%clk
0:00:17.6]} 37... Qf4+ {[%clk 0:00:04.1]} 38. Kg1 {[%clk 0:00:18.1]} 38... Qc1+
{[%clk 0:00:04.9]} 39. Kf2 {[%clk 0:00:19.1]} 39... Qd2+ {[%clk 0:00:06.2]} 40.
Kf3 {[%clk 0:00:19.6]} 40... Qd3+ {[%clk 0:00:07.4]} 41. Kf4 {[%clk 0:00:20.7]}
41... Qd4+ {[%clk 0:00:08.4]} 42. Be4 {[%clk 0:00:21.8]} 42... Qf6+ {[%clk
0:00:07.1]} 43. Ke3 {[%clk 0:00:19.2]} 43... Qc3+ {[%clk 0:00:07.9]} 44. Bd3
{[%clk 0:00:20.3]} 44... Qe5+ {[%clk 0:00:08.9]} 45. Kd2 {[%clk 0:00:21.5]}
45... Qb2+ {[%clk 0:00:09.9]} 46. Ke3 {[%clk 0:00:21.3]} 46... Qe5+ {[%clk
0:00:10.6]} 47. Kf3 {[%clk 0:00:22.7]} 47... Qh5+ {[%clk 0:00:08.2]} 48. Qg4
{[%clk 0:00:21.3]} 48... Qxd5+ {[%clk 0:00:09.5]} 49. Qe4 {[%clk 0:00:22.3]}
49... Qf7+ {[%clk 0:00:10.9]} 50. Qf4 {[%clk 0:00:23.8]} 50... Qd5+ {[%clk
0:00:12.1]} 51. Be4 {[%clk 0:00:24.4]} 51... Qc5 {[%clk 0:00:10.7]} 52. Qf6+
{[%clk 0:00:22.8]} 52... Kg8 {[%clk 0:00:12.1]} 53. c8=Q+ {[%clk 0:00:23.1]}
53... Qxc8 {[%clk 0:00:11.9]} 54. Bd5+ {[%clk 0:00:24.4]} 1-0